[Event "*** Titled Tuesday Blitz"]
[Site "Chess.com"]
[Date "2018.08.07"]
[Round "9"]
[White "m3alam"]
[Black "Micki-taryan"]
[Result "0-1"]
[WhiteElo "2221"]
[BlackElo "2899"]
[TimeControl "180+2"]
[EndTime "15:03:07 PDT"]
[Termination "Micki-taryan won by checkmate"]

1. d4 {[%clk 0:03:00.3]} 1... Nf6 {[%clk 0:02:59]} 2. Nf3 {[%clk 0:03:01.3]}
2... e6 {[%clk 0:02:59.2]} 3. g3 {[%clk 0:03:02.8]} 3... b6 {[%clk 0:02:59.7]}
4. Bg2 {[%clk 0:03:04.2]} 4... Bb7 {[%clk 0:03:01]} 5. O-O {[%clk 0:03:05.3]}
5... Be7 {[%clk 0:03:02.6]} 6. c4 {[%clk 0:03:06.7]} 6... O-O {[%clk 0:03:04.2]}
7. Nc3 {[%clk 0:03:06.1]} 7... Ne4 {[%clk 0:03:05.6]} 8. Bd2 {[%clk 0:03:06.6]}
8... Bf6 {[%clk 0:03:05.9]} 9. Be1 {[%clk 0:03:06.7]} 9... Nxc3 {[%clk
0:03:06.5]} 10. Bxc3 {[%clk 0:03:06.9]} 10... Be4 {[%clk 0:03:08.4]} 11. Nd2
{[%clk 0:03:05.7]} 11... Bxg2 {[%clk 0:03:08.7]} 12. Kxg2 {[%clk 0:03:07.6]}
12... d6 {[%clk 0:03:10.2]} 13. Ne4 {[%clk 0:03:08.3]} 13... Be7 {[%clk
0:03:10.2]} 14. h4 {[%clk 0:03:07.8]} 14... Nd7 {[%clk 0:03:11.2]} 15. Qd3
{[%clk 0:03:07.3]} 15... d5 {[%clk 0:03:10.8]} 16. cxd5 {[%clk 0:03:06.2]} 16...
exd5 {[%clk 0:03:12.7]} 17. Nd2 {[%clk 0:02:51.1]} 17... Re8 {[%clk 0:03:13.5]}
18. Nf3 {[%clk 0:02:51]} 18... Bd6 {[%clk 0:03:12.8]} 19. Rae1 {[%clk 0:02:37]}
19... Nf6 {[%clk 0:03:03.8]} 20. Ne5 {[%clk 0:02:33.1]} 20... Ne4 {[%clk
0:03:01]} 21. f3 {[%clk 0:02:21.5]} 21... Nxc3 {[%clk 0:03:00.6]} 22. Qxc3
{[%clk 0:02:22.4]} 22... c5 {[%clk 0:03:00.7]} 23. Nd3 {[%clk 0:02:17.5]} 23...
c4 {[%clk 0:03:01.1]} 24. Ne5 {[%clk 0:02:16.5]} 24... b5 {[%clk 0:03:02.4]} 25.
e4 {[%clk 0:02:14.9]} 25... b4 {[%clk 0:03:02.6]} 26. Qd2 {[%clk 0:02:10.8]}
26... Bxe5 {[%clk 0:02:43.1]} 27. dxe5 {[%clk 0:02:10.3]} 27... dxe4 {[%clk
0:02:45]} 28. Qxb4 {[%clk 0:02:04.2]} 28... Rxe5 {[%clk 0:02:44.9]} 29. Qxc4
{[%clk 0:02:04.6]} 29... exf3+ {[%clk 0:02:45.1]} 30. Kxf3 {[%clk 0:02:03.7]}
30... Rxe1 {[%clk 0:02:40.7]} 31. Rxe1 {[%clk 0:02:02.9]} 31... h6 {[%clk
0:02:40.6]} 32. Re2 {[%clk 0:01:48.4]} 32... Rc8 {[%clk 0:02:40.8]} 33. Qe4
{[%clk 0:01:37.7]} 33... Qd1 {[%clk 0:02:40.9]} 34. Kg2 {[%clk 0:01:29.4]} 34...
Rc1 {[%clk 0:02:40.6]} 35. Qa8+ {[%clk 0:01:24.3]} 35... Kh7 {[%clk 0:02:39.9]}
36. Qe4+ {[%clk 0:01:25.1]} 36... g6 {[%clk 0:02:40.9]} 37. Qf3 {[%clk
0:01:18.8]} 37... Qh1+ {[%clk 0:02:34.5]} 38. Kf2 {[%clk 0:01:17.9]} 38... Qg1#
{[%clk 0:02:36.4]} 0-1

[Event "*** Titled Tuesday Blitz"]
[Site "Chess.com"]
[Date "2018.08.07"]
[Round "9"]
[White "JonahWillow"]
[Black "Haykos"]
[Result "1-0"]
[WhiteElo "2676"]
[BlackElo "2532"]
[TimeControl "180+2"]
[EndTime "15:03:15 PDT"]
[Termination "JonahWillow won by resignation"]

1. e4 {[%clk 0:03:01.9]} 1... c5 {[%clk 0:03:01.3]} 2. Nf3 {[%clk 0:03:02.9]}
2... e6 {[%clk 0:03:02.6]} 3. d4 {[%clk 0:03:04.3]} 3... cxd4 {[%clk 0:03:04.2]}
4. Nxd4 {[%clk 0:03:06.2]} 4... Nf6 {[%clk 0:03:05.8]} 5. Nc3 {[%clk 0:03:07.4]}
5... Nc6 {[%clk 0:03:07.5]} 6. g3 {[%clk 0:03:07.9]} 6... Bb4 {[%clk 0:03:08.3]}
7. Bg2 {[%clk 0:03:08.4]} 7... d5 {[%clk 0:02:57.7]} 8. exd5 {[%clk 0:03:01]}
8... Nxd5 {[%clk 0:02:58.2]} 9. O-O {[%clk 0:03:00.1]} 9... O-O {[%clk
0:02:31.6]} 10. Nxd5 {[%clk 0:02:56.2]} 10... exd5 {[%clk 0:02:32.8]} 11. Nxc6
{[%clk 0:02:57.2]} 11... bxc6 {[%clk 0:02:33.5]} 12. c3 {[%clk 0:02:58.8]} 12...
Bc5 {[%clk 0:02:29.5]} 13. Bf4 {[%clk 0:02:51.9]} 13... a5 {[%clk 0:02:25.9]}
14. Qa4 {[%clk 0:02:51.2]} 14... Qb6 {[%clk 0:02:26.1]} 15. b4 {[%clk
0:02:48.3]} 15... axb4 {[%clk 0:01:54.8]} 16. Qxa8 {[%clk 0:02:45.4]} 16... Ba6
{[%clk 0:01:55.9]} 17. Bc7 {[%clk 0:02:34.6]} 17... Qb5 {[%clk 0:01:24.7]} 18.
Bd8 {[%clk 0:02:18.4]} 18... bxc3 {[%clk 0:01:22.4]} 19. Rfe1 {[%clk 0:02:15.1]}
19... Bb7 {[%clk 0:00:58]} 20. Qa5 {[%clk 0:02:12.8]} 20... Qc4 {[%clk 0:00:28]}
21. Rac1 {[%clk 0:02:08.7]} 21... d4 {[%clk 0:00:22.5]} 22. Bb6 {[%clk
0:02:03.4]} 22... Ra8 {[%clk 0:00:22.9]} 23. Qxc5 {[%clk 0:01:58.9]} 1-0

[Event "*** Titled Tuesday Blitz"]
[Site "Chess.com"]
[Date "2018.08.07"]
[Round "9"]
[White "platy3"]
[Black "OparinGrigoriy"]
[Result "0-1"]
[WhiteElo "2759"]
[BlackElo "2890"]
[TimeControl "180+2"]
[EndTime "15:04:50 PDT"]
[Termination "OparinGrigoriy won by resignation"]

1. e4 {[%clk 0:03:00.4]} 1... e5 {[%clk 0:02:58.3]} 2. Nf3 {[%clk 0:03:01.5]}
2... Nc6 {[%clk 0:02:59.8]} 3. Bb5 {[%clk 0:03:02.9]} 3... a6 {[%clk 0:03:01.2]}
4. Ba4 {[%clk 0:03:04.3]} 4... Nf6 {[%clk 0:03:02.6]} 5. O-O {[%clk 0:03:05.5]}
5... Be7 {[%clk 0:03:04.2]} 6. Re1 {[%clk 0:03:07]} 6... b5 {[%clk 0:03:05.5]}
7. Bb3 {[%clk 0:03:08.4]} 7... d6 {[%clk 0:03:07]} 8. c3 {[%clk 0:03:09.7]} 8...
O-O {[%clk 0:03:08.2]} 9. h3 {[%clk 0:03:11.2]} 9... Nb8 {[%clk 0:03:08.3]} 10.
d4 {[%clk 0:03:11.7]} 10... Nbd7 {[%clk 0:03:09.6]} 11. Nbd2 {[%clk 0:03:12.5]}
11... Bb7 {[%clk 0:03:10.6]} 12. Bc2 {[%clk 0:03:13.8]} 12... Re8 {[%clk
0:03:11.3]} 13. Nf1 {[%clk 0:03:15]} 13... Bf8 {[%clk 0:03:12.8]} 14. Ng3 {[%clk
0:03:16.1]} 14... g6 {[%clk 0:03:12.4]} 15. Bg5 {[%clk 0:03:16.9]} 15... h6
{[%clk 0:03:12.9]} 16. Bd2 {[%clk 0:03:17.9]} 16... Bg7 {[%clk 0:03:12.3]} 17.
a4 {[%clk 0:03:17.6]} 17... Nb6 {[%clk 0:03:13.5]} 18. b3 {[%clk 0:03:15.6]}
18... bxa4 {[%clk 0:03:12.9]} 19. bxa4 {[%clk 0:03:16.2]} 19... Nc4 {[%clk
0:03:14.1]} 20. d5 {[%clk 0:02:56.3]} 20... c6 {[%clk 0:03:05.1]} 21. dxc6
{[%clk 0:02:46.3]} 21... Bxc6 {[%clk 0:03:05.8]} 22. Bb3 {[%clk 0:02:47.6]}
22... Na5 {[%clk 0:03:00.9]} 23. Ba2 {[%clk 0:02:30.2]} 23... Qd7 {[%clk
0:03:01.4]} 24. Nh2 {[%clk 0:02:14.5]} 24... Nb7 {[%clk 0:02:48.1]} 25. Qf3
{[%clk 0:02:13.7]} 25... h5 {[%clk 0:02:36.6]} 26. Bh6 {[%clk 0:01:59.2]} 26...
Nc5 {[%clk 0:02:28.3]} 27. Bxg7 {[%clk 0:01:59.7]} 27... Kxg7 {[%clk 0:02:29.1]}
28. Rad1 {[%clk 0:01:48.1]} 28... Bxa4 {[%clk 0:02:27.1]} 29. Rd2 {[%clk
0:01:49.3]} 29... Rab8 {[%clk 0:02:27.7]} 30. Qe3 {[%clk 0:01:49.5]} 30... Nh7
{[%clk 0:02:10.5]} 31. Nf3 {[%clk 0:01:09.1]} 31... Qe7 {[%clk 0:02:07.3]} 32.
h4 {[%clk 0:00:55.8]} 32... a5 {[%clk 0:02:01.7]} 33. Ng5 {[%clk 0:00:57]} 33...
Nxg5 {[%clk 0:02:02.5]} 34. hxg5 {[%clk 0:00:58.9]} 34... Bb3 {[%clk 0:02:03.1]}
35. Bb1 {[%clk 0:00:50.8]} 35... Ne6 {[%clk 0:02:00.6]} 36. Nf5+ {[%clk
0:00:33.6]} 36... gxf5 {[%clk 0:02:00.5]} 37. exf5 {[%clk 0:00:35.5]} 37... Qxg5
{[%clk 0:02:01.8]} 38. fxe6 {[%clk 0:00:31.2]} 38... Qxe3 {[%clk 0:02:01.6]} 39.
Rxe3 {[%clk 0:00:31.2]} 39... Rxe6 {[%clk 0:02:01.2]} 40. Bf5 {[%clk 0:00:28.1]}
40... Rf6 {[%clk 0:02:00.4]} 41. Rg3+ {[%clk 0:00:28.8]} 41... Kf8 {[%clk
0:02:00.2]} 42. Rg5 {[%clk 0:00:28.7]} 42... a4 {[%clk 0:02:00]} 0-1

[Event "*** Titled Tuesday Blitz"]
[Site "Chess.com"]
[Date "2018.08.07"]
[Round "9"]
[White "Mimsychess"]
[Black "sandager"]
[Result "1-0"]
[WhiteElo "2272"]
[BlackElo "2026"]
[TimeControl "180+2"]
[EndTime "15:04:53 PDT"]
[Termination "Mimsychess won by resignation"]

1. Nf3 {[%clk 0:03:01.9]} 1... d5 {[%clk 0:02:59.5]} 2. d4 {[%clk 0:03:01.3]}
2... Nf6 {[%clk 0:03:00.6]} 3. c4 {[%clk 0:03:00.4]} 3... g6 {[%clk 0:03:00.8]}
4. cxd5 {[%clk 0:03:00.7]} 4... Nxd5 {[%clk 0:03:01.3]} 5. e4 {[%clk 0:03:01.8]}
5... Nb6 {[%clk 0:03:01.9]} 6. h3 {[%clk 0:03:01.7]} 6... Bg7 {[%clk 0:03:03]}
7. Nc3 {[%clk 0:03:02.8]} 7... O-O {[%clk 0:03:03.7]} 8. Be3 {[%clk 0:03:04.3]}
8... Nc6 {[%clk 0:03:03.8]} 9. Qd2 {[%clk 0:02:51.4]} 9... e5 {[%clk 0:03:00.8]}
10. d5 {[%clk 0:02:50.8]} 10... Na5 {[%clk 0:02:57.1]} 11. b3 {[%clk 0:02:45.2]}
11... c6 {[%clk 0:02:56.3]} 12. Rd1 {[%clk 0:02:06.2]} 12... cxd5 {[%clk
0:02:45.4]} 13. Nxd5 {[%clk 0:01:51.9]} 13... Nxd5 {[%clk 0:02:33.1]} 14. exd5
{[%clk 0:01:53.8]} 14... b6 {[%clk 0:02:29.6]} 15. Bb5 {[%clk 0:01:37.4]} 15...
Bd7 {[%clk 0:02:25.7]} 16. Bxd7 {[%clk 0:01:37.6]} 16... Qxd7 {[%clk 0:02:25.9]}
17. O-O {[%clk 0:01:37.9]} 17... Nb7 {[%clk 0:02:25.3]} 18. Rc1 {[%clk
0:01:37.5]} 18... Nd6 {[%clk 0:02:25.2]} 19. Rc6 {[%clk 0:01:37.2]} 19... Rac8
{[%clk 0:02:12.9]} 20. Rfc1 {[%clk 0:01:37.3]} 20... Ne4 {[%clk 0:01:47.8]} 21.
Qd3 {[%clk 0:01:29.7]} 21... Rxc6 {[%clk 0:01:35.4]} 22. Rxc6 {[%clk 0:01:28.4]}
22... f5 {[%clk 0:01:25.7]} 23. Qc4 {[%clk 0:01:20.9]} 23... Kh8 {[%clk
0:01:19.2]} 24. Rc7 {[%clk 0:01:15.8]} 24... Qd8 {[%clk 0:01:16.6]} 25. Qc6
{[%clk 0:01:03.5]} 25... f4 {[%clk 0:00:53.9]} 26. Bc1 {[%clk 0:01:03.5]} 26...
Nd6 {[%clk 0:00:51.4]} 27. Rd7 {[%clk 0:01:03.8]} 27... Qc8 {[%clk 0:00:21.4]}
28. Rxd6 {[%clk 0:01:04.1]} 28... Qxc6 {[%clk 0:00:16.8]} 29. dxc6 {[%clk
0:01:03.7]} 29... e4 {[%clk 0:00:17.6]} 30. c7 {[%clk 0:01:02.2]} 1-0

[Event "*** Titled Tuesday Blitz"]
[Site "Chess.com"]
[Date "2018.08.07"]
[Round "9"]
[White "fidetrainerNET"]
[Black "ChessicallyInclined"]
[Result "0-1"]
[WhiteElo "1931"]
[BlackElo "2346"]
[TimeControl "180+2"]
[EndTime "15:04:55 PDT"]
[Termination "ChessicallyInclined won by resignation"]

1. c4 {[%clk 0:03:01.9]} 1... f5 {[%clk 0:02:58.4]} 2. Nc3 {[%clk 0:03:00.6]}
2... Nf6 {[%clk 0:02:59.9]} 3. d3 {[%clk 0:02:55.4]} 3... g6 {[%clk 0:03:00.7]}
4. e4 {[%clk 0:02:54.9]} 4... d6 {[%clk 0:03:00.1]} 5. Bg5 {[%clk 0:02:53.7]}
5... Bg7 {[%clk 0:03:00.5]} 6. f4 {[%clk 0:02:53.9]} 6... Nbd7 {[%clk
0:02:55.6]} 7. Nf3 {[%clk 0:02:52.6]} 7... O-O {[%clk 0:02:49.3]} 8. Qc2 {[%clk
0:02:51.8]} 8... h6 {[%clk 0:02:47.4]} 9. Bh4 {[%clk 0:02:51.9]} 9... fxe4
{[%clk 0:02:47.7]} 10. dxe4 {[%clk 0:02:51.6]} 10... e5 {[%clk 0:02:49.2]} 11.
fxe5 {[%clk 0:02:46.5]} 11... Nxe5 {[%clk 0:02:51.1]} 12. O-O-O {[%clk
0:02:46.6]} 12... Qe8 {[%clk 0:02:47.6]} 13. Nd4 {[%clk 0:02:41.4]} 13... Bd7
{[%clk 0:02:37.6]} 14. h3 {[%clk 0:02:41.6]} 14... Nh5 {[%clk 0:02:36.2]} 15. g4
{[%clk 0:02:41.1]} 15... Nf4 {[%clk 0:02:35.5]} 16. Bg3 {[%clk 0:02:37.7]} 16...
g5 {[%clk 0:02:34]} 17. Nf5 {[%clk 0:02:37]} 17... Bxf5 {[%clk 0:02:33.2]} 18.
exf5 {[%clk 0:02:34.4]} 18... Qc6 {[%clk 0:02:34.2]} 19. Rg1 {[%clk 0:02:30.7]}
19... Nf3 {[%clk 0:02:33.1]} 20. Bg2 {[%clk 0:02:18.9]} 20... Nxg2 {[%clk
0:02:29.8]} 21. Rxg2 {[%clk 0:02:19.6]} 21... Nd4 {[%clk 0:02:22.2]} 22. Qd3
{[%clk 0:02:17]} 22... Rae8 {[%clk 0:02:19.5]} 23. Rgd2 {[%clk 0:02:11.6]} 23...
Qf3 {[%clk 0:01:48.6]} 24. Bf2 {[%clk 0:02:06.5]} 24... Qxd3 {[%clk 0:01:46.8]}
25. Rxd3 {[%clk 0:02:06.2]} 25... Ne2+ {[%clk 0:01:48.4]} 26. Nxe2 {[%clk
0:02:03.7]} 26... Rxe2 {[%clk 0:01:50.3]} 27. R1d2 {[%clk 0:02:04.5]} 27... Rfe8
{[%clk 0:01:49.2]} 28. Bxa7 {[%clk 0:02:04.1]} 28... Rxd2 {[%clk 0:01:43.7]} 29.
Kxd2 {[%clk 0:02:01.4]} 29... b6 {[%clk 0:01:41.3]} 30. c5 {[%clk 0:02:00.5]}
30... bxc5 {[%clk 0:01:30]} 31. Re3 {[%clk 0:01:51.9]} 31... Ra8 {[%clk
0:01:26.2]} 32. Ra3 {[%clk 0:01:47.1]} 32... Bxb2 {[%clk 0:01:27.5]} 33. Ra5
{[%clk 0:01:47.2]} 33... Bd4 {[%clk 0:01:26.5]} 34. Kd3 {[%clk 0:01:46.6]} 34...
Bf2 {[%clk 0:01:23.9]} 35. Kc4 {[%clk 0:01:46.7]} 35... c6 {[%clk 0:01:22.2]}
36. Bb6 {[%clk 0:01:44]} 36... d5+ {[%clk 0:01:22.5]} 37. Kd3 {[%clk 0:01:39.8]}
37... c4+ {[%clk 0:01:04]} 38. Ke2 {[%clk 0:01:40.2]} 38... Rxa5 {[%clk
0:01:05.2]} 39. Bxa5 {[%clk 0:01:40.2]} 39... Bc5 {[%clk 0:01:05.3]} 40. Bd8
{[%clk 0:01:35.8]} 40... d4 {[%clk 0:00:57.1]} 41. a4 {[%clk 0:01:35.2]} 41...
Bb4 {[%clk 0:00:47.8]} 42. a5 {[%clk 0:01:35.4]} 42... d3+ {[%clk 0:00:48.4]}
43. Kd1 {[%clk 0:01:36.1]} 43... c3 {[%clk 0:00:48.6]} 44. a6 {[%clk 0:01:36.7]}
44... c2+ {[%clk 0:00:49.8]} 45. Kc1 {[%clk 0:01:37.4]} 45... Ba3+ {[%clk
0:00:50.6]} 46. Kd2 {[%clk 0:01:37.2]} 46... c1=Q+ {[%clk 0:00:52.1]} 47. Kxd3
{[%clk 0:01:39.1]} 47... Qd1+ {[%clk 0:00:53.1]} 48. Kc4 {[%clk 0:01:39.6]}
48... Qxd8 {[%clk 0:00:54.5]} 0-1

[Event "*** Titled Tuesday Blitz"]
[Site "Chess.com"]
[Date "2018.08.07"]
[Round "9"]
[White "murmah2003"]
[Black "luca_va99"]
[Result "0-1"]
[WhiteElo "2549"]
[BlackElo "2437"]
[TimeControl "180+2"]
[EndTime "15:05:07 PDT"]
[Termination "luca_va99 won on time"]

1. Nf3 {[%clk 0:03:01.9]} 1... Nf6 {[%clk 0:03:00.3]} 2. c4 {[%clk 0:03:02]}
2... c6 {[%clk 0:02:59.6]} 3. Nc3 {[%clk 0:03:02.6]} 3... d5 {[%clk 0:03:00.4]}
4. e3 {[%clk 0:03:04.5]} 4... e6 {[%clk 0:02:59.4]} 5. b3 {[%clk 0:03:02.9]}
5... Nbd7 {[%clk 0:02:59]} 6. Bb2 {[%clk 0:02:59.3]} 6... Bd6 {[%clk 0:02:59.7]}
7. d4 {[%clk 0:03:00.8]} 7... a6 {[%clk 0:02:59.7]} 8. Bd3 {[%clk 0:03:01.9]}
8... b5 {[%clk 0:02:59.6]} 9. O-O {[%clk 0:03:02]} 9... Bb7 {[%clk 0:02:57.5]}
10. e4 {[%clk 0:03:01.3]} 10... b4 {[%clk 0:02:51.4]} 11. Nxd5 {[%clk
0:02:47.9]} 11... Nxd5 {[%clk 0:02:39.9]} 12. cxd5 {[%clk 0:02:38.1]} 12... cxd5
{[%clk 0:02:40.5]} 13. e5 {[%clk 0:02:38.7]} 13... Be7 {[%clk 0:02:37.2]} 14.
Qe2 {[%clk 0:02:34.7]} 14... Qb6 {[%clk 0:02:36.6]} 15. Bc1 {[%clk 0:02:31.7]}
15... Rc8 {[%clk 0:02:36.1]} 16. Be3 {[%clk 0:02:26.5]} 16... O-O {[%clk
0:02:29.9]} 17. Bg5 {[%clk 0:02:00.4]} 17... Bxg5 {[%clk 0:02:13.9]} 18. Bxh7+
{[%clk 0:01:32.1]} 18... Kxh7 {[%clk 0:02:15]} 19. Nxg5+ {[%clk 0:01:32.8]}
19... Kg6 {[%clk 0:02:15.1]} 20. Qg4 {[%clk 0:01:11]} 20... f5 {[%clk
0:02:13.5]} 21. Qg3 {[%clk 0:01:12.3]} 21... Qxd4 {[%clk 0:02:08.1]} 22. Nxe6+
{[%clk 0:00:18.5]} 22... Qg4 {[%clk 0:02:06.6]} 23. Nxf8+ {[%clk 0:00:16]} 23...
Nxf8 {[%clk 0:02:06.9]} 24. Qd3 {[%clk 0:00:06.3]} 24... Ne6 {[%clk 0:02:01]}
25. Qd2 {[%clk 0:00:05.5]} 25... Rc3 {[%clk 0:00:58.5]} 26. f3 {[%clk
0:00:04.8]} 26... Qh4 {[%clk 0:00:58.3]} 0-1

[Event "*** Titled Tuesday Blitz"]
[Site "Chess.com"]
[Date "2018.08.07"]
[Round "9"]
[White "saraswathii"]
[Black "David_Klein"]
[Result "1-0"]
[WhiteElo "2323"]
[BlackElo "2487"]
[TimeControl "180+2"]
[EndTime "15:05:08 PDT"]
[Termination "saraswathii won by checkmate"]

1. e4 {[%clk 0:03:01.9]} 1... a6 {[%clk 0:02:56.5]} 2. d3 {[%clk 0:03:02.7]}
2... f5 {[%clk 0:02:53.9]} 3. Nf3 {[%clk 0:03:01.8]} 3... Nc6 {[%clk 0:02:52.7]}
4. Nc3 {[%clk 0:03:02.1]} 4... e5 {[%clk 0:02:53.2]} 5. g3 {[%clk 0:03:02]} 5...
Bc5 {[%clk 0:02:52.8]} 6. Bg2 {[%clk 0:03:02.8]} 6... Nf6 {[%clk 0:02:53.5]} 7.
O-O {[%clk 0:03:03]} 7... d6 {[%clk 0:02:54.7]} 8. Qe2 {[%clk 0:02:59.2]} 8...
Qe7 {[%clk 0:02:52.1]} 9. Bg5 {[%clk 0:02:56.6]} 9... Be6 {[%clk 0:02:50.8]} 10.
exf5 {[%clk 0:02:55.1]} 10... Bxf5 {[%clk 0:02:51.8]} 11. Nh4 {[%clk 0:02:55.6]}
11... Nd4 {[%clk 0:02:49.9]} 12. Qd1 {[%clk 0:02:53.8]} 12... Bc8 {[%clk
0:02:49.6]} 13. Nd5 {[%clk 0:02:52.8]} 13... Qf7 {[%clk 0:02:49.5]} 14. Bxf6
{[%clk 0:02:52.8]} 14... gxf6 {[%clk 0:02:50.1]} 15. c3 {[%clk 0:02:52.9]} 15...
Ne6 {[%clk 0:02:45.7]} 16. Qh5 {[%clk 0:02:48.2]} 16... Qxh5 {[%clk 0:02:20.7]}
17. Nxf6+ {[%clk 0:02:48.2]} 17... Ke7 {[%clk 0:02:21.2]} 18. Nxh5 {[%clk
0:02:50.1]} 18... Rf8 {[%clk 0:02:20.5]} 19. Rae1 {[%clk 0:02:46.5]} 19... Bd7
{[%clk 0:02:15.3]} 20. Bh3 {[%clk 0:02:39.6]} 20... Bb5 {[%clk 0:01:46.6]} 21.
d4 {[%clk 0:02:27.6]} 21... Bxf1 {[%clk 0:01:42.4]} 22. Kxf1 {[%clk 0:02:27.1]}
22... Bb6 {[%clk 0:01:28.8]} 23. f3 {[%clk 0:02:19.4]} 23... Ng5 {[%clk
0:01:25.5]} 24. Bg4 {[%clk 0:02:19.7]} 24... Rae8 {[%clk 0:00:57.5]} 25. dxe5
{[%clk 0:02:17.7]} 25... Kd8 {[%clk 0:00:58.3]} 26. e6 {[%clk 0:02:12]} 26... d5
{[%clk 0:00:27.2]} 27. Ng7 {[%clk 0:02:02.3]} 27... Re7 {[%clk 0:00:26.4]} 28.
Nhf5 {[%clk 0:02:01.2]} 28... Nxf3 {[%clk 0:00:18.5]} 29. Bxf3 {[%clk
0:02:00.2]} 29... Rxg7 {[%clk 0:00:18.6]} 30. Nxg7 {[%clk 0:01:54.4]} 30...
Rxf3+ {[%clk 0:00:19.2]} 31. Kg2 {[%clk 0:01:46.6]} 31... Rf2+ {[%clk
0:00:19.9]} 32. Kh3 {[%clk 0:01:47.6]} 32... Ke7 {[%clk 0:00:19]} 33. g4 {[%clk
0:01:44.2]} 33... Rf3+ {[%clk 0:00:20.1]} 34. Kg2 {[%clk 0:01:44.8]} 34... Rf2+
{[%clk 0:00:21.1]} 35. Kg3 {[%clk 0:01:45.7]} 35... Rxb2 {[%clk 0:00:17.8]} 36.
Nf5+ {[%clk 0:01:46.4]} 36... Ke8 {[%clk 0:00:19.1]} 37. Kh3 {[%clk 0:01:42]}
37... c6 {[%clk 0:00:17.8]} 38. e7 {[%clk 0:01:42.5]} 38... Bc7 {[%clk 0:00:17]}
39. Ng7+ {[%clk 0:01:41.5]} 39... Kf7 {[%clk 0:00:18.3]} 40. e8=Q+ {[%clk
0:01:41.6]} 40... Kxg7 {[%clk 0:00:19.5]} 41. Re7+ {[%clk 0:01:42.4]} 41... Kf6
{[%clk 0:00:20.8]} 42. Qf7+ {[%clk 0:01:41.2]} 42... Kg5 {[%clk 0:00:21.8]} 43.
Qf5+ {[%clk 0:01:42]} 43... Kh6 {[%clk 0:00:22.5]} 44. Rxh7# {[%clk 0:01:43.4]}
1-0

[Event "*** Titled Tuesday Blitz"]
[Site "Chess.com"]
[Date "2018.08.07"]
[Round "9"]
[White "ShadowJolteon"]
[Black "Titus369"]
[Result "1-0"]
[WhiteElo "2224"]
[BlackElo "2284"]
[TimeControl "180+2"]
[EndTime "15:05:09 PDT"]
[Termination "ShadowJolteon won by resignation"]

1. d4 {[%clk 0:03:01.9]} 1... d5 {[%clk 0:02:57.7]} 2. c4 {[%clk 0:03:03]} 2...
e6 {[%clk 0:02:57.8]} 3. Nf3 {[%clk 0:03:04.3]} 3... Nf6 {[%clk 0:02:55.6]} 4.
g3 {[%clk 0:03:05.2]} 4... Be7 {[%clk 0:02:56.1]} 5. Bg2 {[%clk 0:03:05.7]} 5...
O-O {[%clk 0:02:57.7]} 6. O-O {[%clk 0:03:06.4]} 6... dxc4 {[%clk 0:02:59.2]} 7.
Qc2 {[%clk 0:03:07.5]} 7... b5 {[%clk 0:03:00.3]} 8. a4 {[%clk 0:03:06.6]} 8...
Bb7 {[%clk 0:03:00.4]} 9. axb5 {[%clk 0:03:05.1]} 9... a6 {[%clk 0:03:01.9]} 10.
bxa6 {[%clk 0:03:04.1]} 10... Nxa6 {[%clk 0:03:03.8]} 11. Qxc4 {[%clk
0:03:02.3]} 11... Bd5 {[%clk 0:03:04.6]} 12. Qc3 {[%clk 0:02:46.9]} 12... Ne4
{[%clk 0:02:57.7]} 13. Qe3 {[%clk 0:02:43.1]} 13... Nd6 {[%clk 0:02:51.3]} 14.
Nc3 {[%clk 0:02:30]} 14... Nf5 {[%clk 0:02:43.8]} 15. Qf4 {[%clk 0:02:27.6]}
15... Bd6 {[%clk 0:02:39.6]} 16. Qg5 {[%clk 0:02:27.6]} 16... Be7 {[%clk
0:02:36.4]} 17. Qf4 {[%clk 0:02:28.2]} 17... Bd6 {[%clk 0:02:29.6]} 18. Qg5
{[%clk 0:02:28.5]} 18... Be7 {[%clk 0:02:30.4]} 19. Qd2 {[%clk 0:02:25.2]} 19...
Nb4 {[%clk 0:02:28.4]} 20. Rxa8 {[%clk 0:02:24.9]} 20... Qxa8 {[%clk 0:02:30.3]}
21. Nxd5 {[%clk 0:02:26]} 21... exd5 {[%clk 0:02:30.7]} 22. Ne5 {[%clk
0:02:23.1]} 22... Rd8 {[%clk 0:02:13.2]} 23. Qc3 {[%clk 0:02:07.7]} 23... Na2
{[%clk 0:02:01.8]} 24. Qxc7 {[%clk 0:02:06.1]} 24... Rc8 {[%clk 0:01:59.3]} 25.
Qd7 {[%clk 0:02:02.1]} 25... Nxc1 {[%clk 0:01:50]} 26. Bxd5 {[%clk 0:01:43.4]}
26... Nxe2+ {[%clk 0:01:46.9]} 27. Kg2 {[%clk 0:01:42.8]} 27... Qb8 {[%clk
0:00:46.5]} 28. Bxf7+ {[%clk 0:01:38.1]} 28... Kh8 {[%clk 0:00:43]} 29. Qxf5
{[%clk 0:01:33.5]} 29... Qa8+ {[%clk 0:00:28.3]} 30. f3 {[%clk 0:01:24.5]} 30...
g6 {[%clk 0:00:16.4]} 31. Nxg6+ {[%clk 0:01:21.7]} 31... hxg6 {[%clk 0:00:14.8]}
32. Qe5+ {[%clk 0:01:16.9]} 32... Kh7 {[%clk 0:00:04.2]} 33. Qxe7 {[%clk
0:01:17.7]} 33... Qa6 {[%clk 0:00:04.5]} 34. Bc4+ {[%clk 0:01:13.1]} 34... Kh6
{[%clk 0:00:06]} 1-0